[Event "Turkish Super League 2019"]
[Site "Konya"]
[Date "2019.07.21"]
[Round "5"]
[White "Kitir, Ahmet"]
[Black "Apaydin, Fethi"]
[Result "1/2-1/2"]
[ECO "B50"]
[WhiteElo "2012"]
[BlackElo "2310"]
[Annotator "NA"]
[PlyCount "161"]
[EventDate "2019.07.17"]
[EventType "team-tourn"]
[EventCountry "TUR"]
[SourceTitle "playchess.com"]
[Source "ChessBase"]
[SourceQuality "1"]
[TimeControl "40/5400+30:1800+30"]

1. e4 c5 2. Nf3 d6 3. b3 Nf6 4. e5 dxe5 5. Nxe5 Qd4 6. Bb5+ Nbd7 7. Bb2 Qe4+ 8. Kf1 a6 9. Bd3 Qh4 10. Qf3 Nxe5 11. Bxe5 {[%emt 0:07:30]} Qg4 {[%emt 0:57:30]} 12. Be2 {[%emt 0:28:30]} Qf5 {[%emt 0:20:51]} 13. Qxf5 {[%emt 0:06:30]} Bxf5 {[%emt 0:00:30]} 14. d3 {[%emt 0:00:30]} O-O-O {[%emt 0:01:52]} 15. Nd2 {[%emt 0:05:30]} Nd7 {[%emt 0:00:09]} 16. Bc3 {[%emt 0:08:30]} e6 {[%emt 0:04:54]} 17. a4 {[%emt 0:11:30]} f6 {[%emt 0:03:34]} 18. Nc4 {[%emt 0:00:30]} Kc7 {[%emt 0:00:50]} 19. Bf3 {[%emt 0:00:30]} b6 {[%emt 0:00:37]} 20. Re1 {[%emt 0:06:30]} h5 {[%emt 0:01:49]} 21. Be4 {[%emt 0:03:30]} Bxe4 {[%emt 0:00:05]} 22. Rxe4 {[%emt 0:00:30]} e5 {[%emt 0:01:36]} 23. f4 {[%emt 0:02:59]} exf4 {[%emt 0:00:59]} 24. Re6 {[%emt 0:00:09]} h4 {[%emt 0:01:08]} 25. h3 {[%emt 0:01:59]} Rh5 {[%emt 0:01:01]} 26. Kf2 {[%emt 0:00:36]} Rd5 {[%emt 0:01:13]} 27. Rhe1 {[%emt 0:02:03]} Bd6 {[%emt 0:01:15]} 28. Bd2 {[%emt 0:03:51]} Nf8 {[%emt 0:03:26]} 29. Re8 {[%emt 0:05:05]} Rxe8 {[%emt 0:00:46]} 30. Rxe8 {[%emt 0:00:02]} Nd7 {[%emt 0:00:12]} 31. Nxd6 {[%emt 0:00:25]} Kxd6 {[%emt 0:00:41]} 32. Bxf4+ {[%emt 0:00:30]} Ne5 {[%emt 0:00:00]} 33. a5 {[%emt 0:01:37]} bxa5 {[%emt 0:00:54]} 34. Ra8 {[%emt 0:00:03]} Kc6 {[%emt 0:00:51]} 35. Rxa6+ {[%emt 0:00:10]} Kb5 {[%emt 0:00:00]} 36. Ra7 {[%emt 0:00:37]} Rd7 {[%emt 0:00:26]} 37. Ra8 {[%emt 0:00:19]} Nc6 {[%emt 0:00:21]} 38. Bd2 {[%emt 0:00:36]} Kb6 {[%emt 0:00:55]} 39. Rh8 {[%emt 0:00:47]} Nd4 {[%emt 0:00:26]} 40. Rb8+ {[%emt 0:05:10]} Kc6 {[%emt 0:00:00]} 41. Rc8+ {[%emt 0:03:32]} Kb6 {[%emt 0:13:00]} 42. Rb8+ {[%emt 0:05:30]} Ka7 {[%emt 0:02:48]} 43. Rc8 {[%emt 0:03:30]} Rd5 {[%emt 0:00:05]} 44. Rc7+ {[%emt 0:11:48]} Kb6 {[%emt 0:01:28]} 45. Rxg7 {[%emt 0:00:10]} Nxc2 {[%emt 0:04:02]} 46. Bc3 {[%emt 0:04:43]} Rxd3 {[%emt 0:02:14]} 47. Bxf6 {[%emt 0:00:03]} Rxb3 {[%emt 0:07:01]} 48. Bxh4 {[%emt 0:01:01]} a4 {[%emt 0:00:47]} 49. Bd8+ {[%emt 0:00:37]} Kc6 {[%emt 0:00:13]} 50. Ra7 {[%emt 0:01:35]} a3 {[%emt 0:00:01]} 51. h4 {[%emt 0:00:16]} Nd4 {[%emt 0:02:02]} 52. Bf6 {[%emt 0:01:14]} Nb5 {[%emt 0:01:34]} 53. Ra8 {[%emt 0:03:08]} Kb7 {[%emt 0:01:37]} 54. Ra5 {[%emt 0:00:42]} Nd6 {[%emt 0:00:38]} 55. Be5 {[%emt 0:02:02]} Ne4+ {[%emt 0:00:17]} 56. Ke2 {[%emt 0:00:50]} Kc6 {[%emt 0:00:02]} 57. g4 {[%emt 0:00:06]} Kd5 {[%emt 0:00:15]} 58. Bg7 {[%emt 0:00:34]} Ng3+ {[%emt 0:01:08]} 59. Kd2 {[%emt 0:00:24]} Rb4 {[%emt 0:00:49]} 60. Rxa3 {[%emt 0:01:11]} Rxg4 {[%emt 0:00:10]} 61. Bf8 {[%emt 0:00:04]} Ne4+ {[%emt 0:00:41]} 62. Ke2 {[%emt 0:00:51]} c4 {[%emt 0:00:14]} 63. h5 {[%emt 0:00:09]} Kd4 {[%emt 0:00:38]} 64. h6 {[%emt 0:00:14]} Rg2+ {[%emt 0:00:29]} 65. Ke1 {[%emt 0:00:43]} c3 {[%emt 0:00:41]} 66. h7 {[%emt 0:00:34]} Rg1+ {[%emt 0:00:27]} 67. Ke2 {[%emt 0:00:02]} Ng3+ {[%emt 0:00:33]} 68. Kf2 {[%emt 0:00:49]} Rf1+ {[%emt 0:00:02]} 69. Kxg3 {[%emt 0:00:24]} Rxf8 {[%emt 0:00:02]} 70. Ra7 {[%emt 0:00:22]} c2 {[%emt 0:01:37]} 71. Rc7 {[%emt 0:01:06]} Kd3 {[%emt 0:00:09]} 72. Rd7+ {[%emt 0:00:00]} Ke2 {[%emt 0:00:30]} 73. Re7+ {[%emt 0:00:00]} Kd1 {[%emt 0:00:16]} 74. Rd7+ {[%emt 0:00:28]} Kc1 {[%emt 0:00:00]} 75. Kg4 {[%emt 0:01:05]} Rb8 {[%emt 0:00:18]} 76. Kg5 {[%emt 0:00:05]} Kb1 {[%emt 0:00:28]} 77. Rc7 {[%emt 0:00:23]} Rh8 {[%emt 0:00:54]} 78. Kg6 {[%emt 0:00:17]} c1=Q {[%emt 0:00:10]} 79. Rxc1+ {[%emt 0:00:08]} Kxc1 {[%emt 0:00:00]} 80. Kg7 {[%emt 0:00:31]} Rxh7+ {[%emt 0:00:19]} 81. Kxh7 {[%emt 0:00:30]} 1/2-1/2

[Event "Turkish Super League 2019"]
[Site "Konya"]
[Date "2019.07.21"]
[Round "6"]
[White "Abasov, Nijat"]
[Black "Moiseenko, Vadim"]
[Result "1-0"]
[ECO "C42"]
[WhiteElo "2641"]
[BlackElo "2523"]
[Annotator "ChessBase"]
[PlyCount "122"]
[EventDate "2019.07.17"]
[EventType "team-tourn"]
[EventCountry "TUR"]
[SourceTitle "playchess.com"]
[Source "ChessBase"]
[SourceQuality "1"]
[TimeControl "40/5400+30:1800+30"]

1. e4 e5 2. Nf3 Nf6 3. Nxe5 d6 4. Nf3 Nxe4 5. c4 d5 6. Nc3 Be6 7. cxd5 Nxc3 8. dxc3 Qxd5 9. Bd3 Nd7 10. O-O Nc5 11. Bc2 Qxd1 12. Rxd1 Bd6 13. Nd4 O-O-O 14. b4 Nd7 15. Nxe6 fxe6 16. Re1 Be5 17. Bb2 Bf6 18. Rxe6 Ne5 19. Bf5 Kb8 20. Re1 a5 21. bxa5 Nd3 22. Bxd3 Rxd3 23. a6 b6 24. Rc6 Rhd8 25. Kf1 R3d6 26. Rc4 Rd2 27. Bc1 Rxa2 28. Bf4 Rd7 29. Bxc7+ Ka7 30. Rb1 b5 31. Rc5 b4 32. Rc6 Bxc3 33. Bd6 Bd4 34. Rd1 Rxf2+ 35. Ke1 Rc2 36. Bb8+ Kxb8 37. Rxc2 b3 38. Rc4 b2 39. Rb4+ Ka7 40. Rd3 {[%emt 1:19:00]} Re7+ {[%emt 1:18:00]} 41. Kd2 {[%emt 0:30:30]} Bf6 {[%emt 0:30:30]} 42. Rdb3 {[%emt 0:00:30]} Rd7+ {[%emt 0:05:30]} 43. Ke3 {[%emt 0:00:30]} Rd8 {[%emt 0:01:30]} 44. g3 {[%emt 0:06:30]} Re8+ {[%emt 0:00:30]} 45. Kd3 {[%emt 0:00:30]} Rd8+ {[%emt 0:00:30]} 46. Ke4 {[%emt 0:00:30]} Re8+ {[%emt 0:05:30]} 47. Kf3 {[%emt 0:03:30]} Be5 {[%emt 0:03:10]} 48. Rb6 {[%emt 0:02:30]} Rf8+ {[%emt 0:05:10]} 49. Ke4 {[%emt 0:00:30]} Bf6 {[%emt 0:00:19]} 50. Rc6 {[%emt 0:03:03]} Rf7 {[%emt 0:01:33]} 51. Kd5 {[%emt 0:00:53]} Rd7+ {[%emt 0:00:56]} 52. Ke6 {[%emt 0:00:16]} Re7+ {[%emt 0:00:08]} 53. Kd6 {[%emt 0:00:02]} Rf7 {[%emt 0:00:00]} 54. Rcb6 {[%emt 0:01:38]} Rf8 {[%emt 0:01:26]} 55. Kd7 {[%emt 0:00:58]} Be5 {[%emt 0:03:36]} 56. Rb7+ {[%emt 0:01:46]} Ka8 {[%emt 0:01:56]} 57. Re3 {[%emt 0:04:01]} Rf7+ {[%emt 0:01:17]} 58. Ke6 {[%emt 0:00:23]} Rf1 {[%emt 0:03:06]} 59. Rxe5 {[%emt 0:01:09]} b1=Q {[%emt 0:00:32]} 60. Rxb1 {[%emt 0:00:30]} Rxb1 {[%emt 0:00:30]} 61. Kf7 {[%emt 0:00:00]} Rb2 {[%emt 0:00:00]} 1-0

[Event "Turkish Super League 2019"]
[Site "Konya"]
[Date "2019.07.21"]
[Round "6"]
[White "Kravtsiv, Martyn"]
[Black "Visakh N R"]
[Result "1-0"]
[ECO "D02"]
[WhiteElo "2628"]
[BlackElo "2526"]
[Annotator "ChessBase"]
[PlyCount "143"]
[EventDate "2019.07.17"]
[EventType "team-tourn"]
[EventCountry "TUR"]
[SourceTitle "playchess.com"]
[Source "ChessBase"]
[SourceQuality "1"]
[TimeControl "40/5400+30:1800+30"]

1. d4 Nf6 2. Bf4 d5 3. e3 e6 4. Nf3 c5 5. Nbd2 Nc6 6. c3 Bd6 7. Bg3 Bxg3 8. hxg3 Qd6 9. Bb5 Bd7 10. Bxc6 Bxc6 11. Ne5 cxd4 12. exd4 Qc7 13. Qe2 O-O-O 14. O-O Kb8 15. Rfc1 Be8 16. a4 Rc8 17. c4 dxc4 18. Nexc4 h5 19. Nb3 h4 20. Nb6 Bc6 21. Nxc8 hxg3 22. fxg3 Rxc8 23. Qe3 Ne4 24. Nc5 Nxg3 25. Rc3 Nf5 26. Qe5 Ka8 27. Qxc7 Rxc7 28. Rd1 Rc8 29. b4 Bd5 30. Ne4 Rf8 31. Nc5 Rc8 32. Ne4 Rf8 33. Ng3 g6 34. Nxf5 gxf5 35. Rdc1 Kb8 36. b5 a6 37. bxa6 bxa6 38. g3 Rd8 39. Rb1+ Bb7 40. Rc4 {[%emt 1:18:00]} Rd7 {[%emt 1:18:00]} 41. Rb6 {[%emt 0:32:30]} Ka7 {[%emt 0:30:30]} 42. a5 {[%emt 0:00:30]} Bd5 {[%emt 0:08:30]} 43. Rc5 {[%emt 0:02:30]} Be4 {[%emt 0:03:30]} 44. Kf2 {[%emt 0:00:30]} Bd5 {[%emt 0:00:30]} 45. Ke3 {[%emt 0:01:30]} Bb7 {[%emt 0:01:58]} 46. Rc4 {[%emt 0:01:30]} f6 {[%emt 0:01:52]} 47. Rc5 {[%emt 0:02:30]} Re7 {[%emt 0:01:01]} 48. Rd6 {[%emt 0:02:30]} Bd5 {[%emt 0:00:43]} 49. Rc8 {[%emt 0:05:38]} Rg7 {[%emt 0:00:44]} 50. Kf2 {[%emt 0:00:14]} Rf7 {[%emt 0:00:08]} 51. Rcd8 {[%emt 0:01:58]} Rb7 {[%emt 0:00:54]} 52. Rf8 {[%emt 0:00:44]} Rb2+ {[%emt 0:02:33]} 53. Ke1 {[%emt 0:00:21]} Rb1+ {[%emt 0:00:24]} 54. Kd2 {[%emt 0:00:08]} Rb2+ {[%emt 0:01:46]} 55. Kc1 {[%emt 0:01:18]} Rb5 {[%emt 0:00:42]} 56. Rxf6 {[%emt 0:07:10]} Rxa5 {[%emt 0:00:08]} 57. Rf7+ {[%emt 0:00:04]} Bb7 {[%emt 0:00:04]} 58. Rxe6 {[%emt 0:00:00]} Rb5 {[%emt 0:00:18]} 59. Kc2 {[%emt 0:01:08]} Rb4 {[%emt 0:00:41]} 60. Kc3 {[%emt 0:00:37]} Rb5 {[%emt 0:00:23]} 61. Ree7 {[%emt 0:01:44]} Kb8 {[%emt 0:00:22]} 62. Re8+ {[%emt 0:01:05]} Ka7 {[%emt 0:00:02]} 63. Re5 {[%emt 0:00:00]} Rb6 {[%emt 0:00:04]} 64. Rfxf5 {[%emt 0:00:50]} Rc6+ {[%emt 0:00:08]} 65. Rc5 {[%emt 0:00:00]} Rg6 {[%emt 0:00:31]} 66. Rg5 {[%emt 0:00:00]} Rf6 {[%emt 0:00:00]} 67. g4 {[%emt 0:01:41]} Kb6 {[%emt 0:00:07]} 68. Rgf5 {[%emt 0:00:15]} Re6 {[%emt 0:00:06]} 69. g5 {[%emt 0:00:19]} Re3+ {[%emt 0:00:05]} 70. Kd2 {[%emt 0:00:39]} Rg3 {[%emt 0:00:04]} 71. Rf6+ {[%emt 0:00:19]} Ka7 {[%emt 0:00:03]} 72. g6 {[%emt 0:00:05]} 1-0

[Event "Turkish Super League 2019"]
[Site "Konya"]
[Date "2019.07.21"]
[Round "6"]
[White "Esipenko, Andrey"]
[Black "Ali Marandi, Cemil Can"]
[Result "1/2-1/2"]
[ECO "D30"]
[WhiteElo "2621"]
[BlackElo "2527"]
[Annotator "ChessBase"]
[PlyCount "72"]
[EventDate "2019.07.17"]
[EventType "team-tourn"]
[EventCountry "TUR"]
[SourceTitle "playchess.com"]
[Source "ChessBase"]
[SourceQuality "1"]
[TimeControl "40/5400+30:1800+30"]

1. d4 {[%emt 0:00:30]} d5 {[%emt 0:00:30]} 2. c4 {[%emt 0:00:00]} c6 {[%emt 0:00:00]} 3. Nf3 {[%emt 0:00:00]} Nf6 {[%emt 0:00:00]} 4. e3 {[%emt 0:00:00]} e6 {[%emt 0:02:30]} 5. Bd3 {[%emt 0:00:00]} Nbd7 {[%emt 0:00:30]} 6. b3 {[%emt 0:00:30]} dxc4 {[%emt 0:00:00]} 7. bxc4 {[%emt 0:02:30]} e5 {[%emt 0:01:00]} 8. Nbd2 {[%emt 0:12:30]} Qe7 {[%emt 0:02:30]} 9. Qc2 {[%emt 0:05:30]} exd4 {[%emt 0:00:30]} 10. Nxd4 {[%emt 0:00:30]} g6 {[%emt 0:00:30]} 11. O-O {[%emt 0:00:30]} Bg7 {[%emt 0:00:30]} 12. Bb2 {[%emt 0:01:30]} O-O {[%emt 0:02:30]} 13. Rfe1 {[%emt 0:01:30]} Re8 {[%emt 0:03:30]} 14. Bf1 {[%emt 0:07:30]} Nf8 {[%emt 0:02:30]} 15. e4 {[%emt 0:07:30]} Ne6 {[%emt 0:22:30]} 16. Nf5 {[%emt 0:05:30]} gxf5 {[%emt 0:03:30]} 17. exf5 {[%emt 0:00:30]} Qf8 {[%emt 0:06:30]} 18. fxe6 {[%emt 0:01:30]} Bxe6 {[%emt 0:00:30]} 19. Nf3 {[%emt 0:01:30]} Bg4 {[%emt 0:05:30]} 20. Ne5 {[%emt 0:09:30]} Bh5 {[%emt 0:01:30]} 21. Qb3 {[%emt 0:01:30]} Qc5 {[%emt 0:03:30]} 22. Bc3 {[%emt 0:12:30]} Bg6 {[%emt 0:05:30]} 23. Qxb7 {[%emt 0:16:37]} Ng4 {[%emt 0:00:30]} 24. Nxg4 {[%emt 0:00:25]} Bxc3 {[%emt 0:00:30]} 25. Rxe8+ {[%emt 0:00:30]} Rxe8 {[%emt 0:00:00]} 26. Rd1 {[%emt 0:00:30]} h5 {[%emt 0:06:00]} 27. Qd7 {[%emt 0:01:50]} Re7 {[%emt 0:01:30]} 28. Qd8+ {[%emt 0:01:28]} Kg7 {[%emt 0:00:00]} 29. Ne3 {[%emt 0:00:13]} Ba5 {[%emt 0:04:00]} 30. Qd6 {[%emt 0:02:05]} Bb6 {[%emt 0:00:30]} 31. Qxc5 {[%emt 0:01:42]} Bxc5 {[%emt 0:00:00]} 32. Bd3 {[%emt 0:00:00]} Bxe3 {[%emt 0:01:00]} 33. fxe3 {[%emt 0:00:25]} Rxe3 {[%emt 0:00:30]} 34. Bxg6 {[%emt 0:00:00]} Kxg6 {[%emt 0:00:00]} 35. Rd6+ {[%emt 0:01:14]} f6 {[%emt 0:00:00]} 36. Rxc6 {[%emt 0:00:21]} Ra3 {[%emt 0:00:30]} 1/2-1/2

[Event "Turkish Super League 2019"]
[Site "Konya"]
[Date "2019.07.21"]
[Round "6"]
[White "Rakhmanov, Aleksandr"]
[Black "Romanov, Evgeny"]
[Result "1/2-1/2"]
[ECO "A12"]
[WhiteElo "2615"]
[BlackElo "2582"]
[Annotator "ChessBase"]
[PlyCount "41"]
[EventDate "2019.07.17"]
[EventType "team-tourn"]
[EventCountry "TUR"]
[SourceTitle "playchess.com"]
[Source "ChessBase"]
[SourceQuality "1"]
[TimeControl "40/5400+30:1800+30"]

1. Nf3 {[%emt 0:00:30]} d5 {[%emt 0:00:30]} 2. g3 {[%emt 0:00:30]} Nf6 {[%emt 0:00:30]} 3. Bg2 {[%emt 0:00:30]} c6 {[%emt 0:00:00]} 4. O-O {[%emt 0:01:30]} Bf5 {[%emt 0:02:00]} 5. b3 {[%emt 0:00:30]} e6 {[%emt 0:00:30]} 6. Bb2 {[%emt 0:00:00]} Be7 {[%emt 0:00:30]} 7. d3 {[%emt 0:01:00]} h6 {[%emt 0:01:30]} 8. Nbd2 {[%emt 0:00:30]} Bh7 {[%emt 0:00:30]} 9. c4 {[%emt 0:01:30]} O-O {[%emt 0:00:30]} 10. a3 {[%emt 0:02:30]} a5 {[%emt 0:00:30]} 11. Ne5 {[%emt 0:05:30]} Nbd7 {[%emt 0:02:30]} 12. Nxd7 {[%emt 0:08:30]} Qxd7 {[%emt 0:10:30]} 13. Nf3 {[%emt 0:03:30]} Rfc8 {[%emt 0:01:30]} 14. Rc1 {[%emt 0:04:30]} Qd8 {[%emt 0:01:30]} 15. Qc2 {[%emt 0:03:30]} Qf8 {[%emt 0:07:30]} 16. Ra1 {[%emt 0:01:30]} Nd7 {[%emt 0:02:30]} 17. Rfd1 {[%emt 0:05:30]} Nc5 {[%emt 0:04:30]} 18. Rab1 {[%emt 0:03:30]} Na6 {[%emt 0:08:30]} 19. Ra1 {[%emt 0:13:30]} Nc5 {[%emt 0:00:30]} 20. Rab1 {[%emt 0:00:00]} Na6 {[%emt 0:01:30]} 21. Ra1 {[%emt 0:00:00]} 1/2-1/2

[Event "Turkish Super League 2019"]
[Site "Konya"]
[Date "2019.07.21"]
[Round "6"]
[White "Nihal Sarin"]
[Black "Benidze, Davit"]
[Result "1-0"]
[ECO "C41"]
[WhiteElo "2610"]
[BlackElo "2469"]
[Annotator "ChessBase"]
[PlyCount "59"]
[EventDate "2019.07.17"]
[EventType "team-tourn"]
[EventCountry "TUR"]
[SourceTitle "playchess.com"]
[Source "ChessBase"]
[SourceQuality "1"]
[TimeControl "40/5400+30:1800+30"]

1. e4 {[%emt 0:00:30]} e5 {[%emt 0:00:30]} 2. Nf3 {[%emt 0:00:30]} d6 {[%emt 0:00:00]} 3. d4 {[%emt 0:01:30]} Nd7 {[%emt 0:00:00]} 4. Bc4 {[%emt 0:00:30]} Be7 {[%emt 0:01:30]} 5. dxe5 {[%emt 0:03:30]} Nxe5 {[%emt 0:00:00]} 6. Nxe5 {[%emt 0:01:30]} dxe5 {[%emt 0:04:00]} 7. Qh5 {[%emt 0:00:00]} g6 {[%emt 0:00:00]} 8. Qxe5 {[%emt 0:01:00]} Nf6 {[%emt 0:00:00]} 9. Bh6 {[%emt 0:04:30]} Qd6 {[%emt 0:00:30]} 10. Qxd6 {[%emt 0:01:30]} cxd6 {[%emt 0:00:00]} 11. Nc3 {[%emt 0:00:00]} Be6 {[%emt 0:00:00]} 12. Bxe6 {[%emt 0:07:00]} fxe6 {[%emt 0:00:30]} 13. f3 {[%emt 0:00:00]} a6 {[%emt 0:00:00]} 14. O-O-O {[%emt 0:02:00]} Nd7 {[%emt 0:01:00]} 15. Ne2 {[%emt 0:08:30]} Rc8 {[%emt 0:02:30]} 16. Bf4 {[%emt 0:09:30]} Ne5 {[%emt 0:00:30]} 17. h4 {[%emt 0:05:30]} Nf7 {[%emt 0:02:30]} 18. Rd3 {[%emt 0:00:30]} Rc5 {[%emt 0:02:30]} 19. Be3 {[%emt 0:05:30]} Rc7 {[%emt 0:01:30]} 20. Bb6 {[%emt 0:00:30]} Rc6 {[%emt 0:01:30]} 21. Rb3 {[%emt 0:00:30]} e5 {[%emt 0:11:30]} 22. Be3 {[%emt 0:02:30]} Rc7 {[%emt 0:06:30]} 23. Nc3 {[%emt 0:01:30]} Rd7 {[%emt 0:03:30]} 24. Nd5 {[%emt 0:00:30]} O-O {[%emt 0:01:30]} 25. Rc3 {[%emt 0:01:30]} Bd8 {[%emt 0:00:00]} 26. Kd2 {[%emt 0:00:30]} Kg7 {[%emt 0:00:00]} 27. Ke2 {[%emt 0:03:30]} h6 {[%emt 0:00:30]} 28. a4 {[%emt 0:08:30]} Bf6 {[%emt 0:01:30]} 29. g4 {[%emt 0:02:30]} Be7 {[%emt 0:00:30]} 30. Nb6 {[%emt 0:00:30]} 1-0

[Event "Turkish Super League 2019"]
[Site "Konya"]
[Date "2019.07.21"]
[Round "6"]
[White "Can, Emre"]
[Black "Annaberdiev, Meilis"]
[Result "0-1"]
[ECO "E06"]
[WhiteElo "2595"]
[BlackElo "2515"]
[Annotator "ChessBase"]
[PlyCount "98"]
[EventDate "2019.07.17"]
[EventType "team-tourn"]
[EventCountry "TUR"]
[SourceTitle "playchess.com"]
[Source "ChessBase"]
[SourceQuality "1"]
[TimeControl "40/5400+30:1800+30"]

1. d4 {[%emt 0:00:30]} Nf6 {[%emt 0:00:30]} 2. c4 {[%emt 0:00:30]} e6 {[%emt 0:00:30]} 3. Nf3 {[%emt 0:00:30]} b6 {[%emt 0:00:00]} 4. g3 {[%emt 0:00:00]} c6 {[%emt 0:00:00]} 5. Bg2 {[%emt 0:02:00]} Be7 {[%emt 0:00:30]} 6. O-O {[%emt 0:00:30]} O-O {[%emt 0:00:00]} 7. Nbd2 {[%emt 0:01:30]} d5 {[%emt 0:00:00]} 8. Qc2 {[%emt 0:00:30]} c5 {[%emt 0:00:00]} 9. dxc5 {[%emt 0:07:30]} bxc5 {[%emt 0:00:00]} 10. e4 {[%emt 0:01:30]} Nc6 {[%emt 0:01:30]} 11. exd5 {[%emt 0:04:30]} exd5 {[%emt 0:00:00]} 12. cxd5 {[%emt 0:00:30]} Nxd5 {[%emt 0:00:00]} 13. a3 {[%emt 0:04:30]} Nd4 {[%emt 0:11:30]} 14. Nxd4 {[%emt 0:10:30]} cxd4 {[%emt 0:00:30]} 15. Rd1 {[%emt 0:08:30]} Ba6 {[%emt 0:14:30]} 16. Nf3 {[%emt 0:05:30]} d3 {[%emt 0:05:30]} 17. Qa4 {[%emt 0:00:00]} Qc8 {[%emt 0:04:30]} 18. Ne5 {[%emt 0:10:00]} Nb6 {[%emt 0:02:30]} 19. Qb3 {[%emt 0:06:30]} Qc2 {[%emt 0:09:30]} 20. Qxc2 {[%emt 0:02:30]} dxc2 {[%emt 0:00:30]} 21. Rd2 {[%emt 0:11:30]} Rad8 {[%emt 0:01:30]} 22. Nc6 {[%emt 0:02:34]} Rxd2 {[%emt 0:00:30]} 23. Nxe7+ {[%emt 0:01:47]} Kh8 {[%emt 0:00:30]} 24. Bxd2 {[%emt 0:00:00]} Rd8 {[%emt 0:00:00]} 25. Nd5 {[%emt 0:03:15]} Nxd5 {[%emt 0:00:00]} 26. Bf3 {[%emt 0:00:31]} Bc4 {[%emt 0:02:30]} 27. Re1 {[%emt 0:00:44]} Bb3 {[%emt 0:04:30]} 28. Kf1 {[%emt 0:01:51]} h6 {[%emt 0:01:30]} 29. Bxd5 {[%emt 0:02:28]} Bxd5 {[%emt 0:01:30]} 30. Rc1 {[%emt 0:00:43]} Bb3 {[%emt 0:03:30]} 31. Ke2 {[%emt 0:00:30]} Rd5 {[%emt 0:00:30]} 32. Ra1 {[%emt 0:03:02]} Ba4 {[%emt 0:04:30]} 33. b4 {[%emt 0:00:34]} a6 {[%emt 0:00:30]} 34. h4 {[%emt 0:01:08]} h5 {[%emt 0:00:30]} 35. Rc1 {[%emt 0:00:22]} Kh7 {[%emt 0:00:00]} 36. Bc3 {[%emt 0:01:34]} Rd1 {[%emt 0:00:00]} 37. Bd2 {[%emt 0:00:36]} Kg6 {[%emt 0:00:30]} 38. Kd3 {[%emt 0:00:00]} Kf5 {[%emt 0:02:30]} 39. Rxc2 {[%emt 0:00:19]} Bxc2+ {[%emt 0:00:30]} 40. Kxc2 {[%emt 0:00:30]} Rf1 {[%emt 0:00:00]} 41. Be3 {[%emt 0:00:32]} Ke4 {[%emt 0:00:00]} 42. a4 {[%emt 0:00:00]} Ra1 {[%emt 0:03:30]} 43. Kb3 {[%emt 0:01:00]} Kd3 {[%emt 0:01:30]} 44. Bc5 {[%emt 0:00:30]} g6 {[%emt 0:02:30]} 45. Be7 {[%emt 0:01:30]} Rb1+ {[%emt 0:01:30]} 46. Ka2 {[%emt 0:00:30]} Re1 {[%emt 0:00:00]} 47. Bc5 {[%emt 0:01:30]} Kc4 {[%emt 0:00:00]} 48. a5 {[%emt 0:01:30]} Re2+ {[%emt 0:00:30]} 49. Ka3 {[%emt 0:00:30]} Rc2 {[%emt 0:01:30]} 0-1

[Event "Turkish Super League 2019"]
[Site "Konya"]
[Date "2019.07.21"]
[Round "6"]
[White "Mchedlishvili, Mikheil"]
[Black "Esen, Baris"]
[Result "1-0"]
[ECO "E90"]
[WhiteElo "2571"]
[BlackElo "2478"]
[Annotator "ChessBase"]
[PlyCount "71"]
[EventDate "2019.07.17"]
[EventType "team-tourn"]
[EventCountry "TUR"]
[SourceTitle "playchess.com"]
[Source "ChessBase"]
[SourceQuality "1"]
[TimeControl "40/5400+30:1800+30"]

1. c4 {[%emt 0:00:30]} g6 {[%emt 0:01:30]} 2. d4 {[%emt 0:02:30]} Nf6 {[%emt 0:06:30]} 3. Nc3 {[%emt 0:01:30]} Bg7 {[%emt 0:00:30]} 4. e4 {[%emt 0:00:30]} d6 {[%emt 0:00:30]} 5. h3 {[%emt 0:01:30]} O-O {[%emt 0:01:30]} 6. Be3 {[%emt 0:00:30]} c6 {[%emt 0:05:30]} 7. Nf3 {[%emt 0:05:30]} a6 {[%emt 0:02:30]} 8. Bd3 {[%emt 0:04:30]} b5 {[%emt 0:01:30]} 9. e5 {[%emt 0:05:30]} Ne8 {[%emt 0:04:30]} 10. O-O {[%emt 0:04:30]} Nd7 {[%emt 0:03:30]} 11. exd6 {[%emt 0:04:30]} exd6 {[%emt 0:04:30]} 12. b3 {[%emt 0:04:30]} Ndf6 {[%emt 0:04:30]} 13. Qd2 {[%emt 0:04:30]} Nc7 {[%emt 0:02:30]} 14. Bh6 {[%emt 0:02:30]} Bb7 {[%emt 0:02:30]} 15. Rad1 {[%emt 0:07:30]} Re8 {[%emt 0:06:30]} 16. Bxg7 {[%emt 0:05:30]} Kxg7 {[%emt 0:00:00]} 17. Qb2 {[%emt 0:00:00]} Ne6 {[%emt 0:10:00]} 18. Rfe1 {[%emt 0:01:00]} d5 {[%emt 0:00:30]} 19. cxd5 {[%emt 0:07:30]} cxd5 {[%emt 0:03:30]} 20. Ne2 {[%emt 0:01:30]} b4 {[%emt 0:01:30]} 21. Ne5 {[%emt 0:03:30]} Qb6 {[%emt 0:02:30]} 22. f4 {[%emt 0:06:30]} a5 {[%emt 0:09:30]} 23. f5 {[%emt 0:14:19]} Nf8 {[%emt 0:00:00]} 24. Ng3 {[%emt 0:01:41]} g5 {[%emt 0:06:00]} 25. Kh1 {[%emt 0:02:10]} h6 {[%emt 0:00:30]} 26. Bb1 {[%emt 0:00:35]} Ba6 {[%emt 0:00:30]} 27. Qf2 {[%emt 0:01:41]} Rac8 {[%emt 0:00:30]} 28. Qf3 {[%emt 0:00:24]} N8h7 {[%emt 0:04:14]} 29. Nh5+ {[%emt 0:00:32]} Nxh5 {[%emt 0:06:46]} 30. Qxh5 {[%emt 0:00:08]} Rc7 {[%emt 0:00:00]} 31. Ng4 {[%emt 0:02:06]} Rh8 {[%emt 0:00:00]} 32. Re6 {[%emt 0:01:27]} fxe6 {[%emt 0:00:39]} 33. Qxh6+ {[%emt 0:00:34]} Kg8 {[%emt 0:06:20]} 34. fxe6 {[%emt 0:00:02]} Qd6 {[%emt 0:00:57]} 35. Re1 {[%emt 0:00:57]} Rg7 {[%emt 0:02:38]} 36. e7 {[%emt 0:01:59]} 1-0

[Event "Turkish Super League 2019"]
[Site "Konya"]
[Date "2019.07.21"]
[Round "6"]
[White "Heberla, Bartlomiej"]
[Black "Dogan, Nazmi Can"]
[Result "1/2-1/2"]
[ECO "E97"]
[WhiteElo "2534"]
[BlackElo "2276"]
[Annotator "ChessBase"]
[PlyCount "119"]
[EventDate "2019.07.17"]
[EventType "team-tourn"]
[EventCountry "TUR"]
[SourceTitle "playchess.com"]
[Source "ChessBase"]
[SourceQuality "1"]
[TimeControl "40/5400+30:1800+30"]

1. c4 g6 2. Nc3 Bg7 3. d4 Nf6 4. e4 O-O 5. Nf3 d6 6. Be2 e5 7. O-O Nc6 8. dxe5 dxe5 9. Bg5 Qxd1 10. Rfxd1 Bg4 11. h3 Bxf3 12. Bxf3 Nd4 13. Nd5 Nxd5 14. cxd5 Nxf3+ 15. gxf3 f6 16. Be3 Rf7 17. Rd3 Bf8 18. Rb3 b6 19. a4 a5 20. Rc3 Bd6 21. Rc6 Rb8 22. Kf1 Kf8 23. Ke2 Ke8 24. Kd3 Kd7 25. Kc4 f5 26. h4 fxe4 27. fxe4 Rf3 28. h5 g5 29. Rg1 Rg8 30. Kd3 Rh3 31. Rcc1 Rxh5 32. Rh1 Rxh1 33. Rxh1 Rg7 34. Ke2 g4 35. Kf1 g3 36. fxg3 Rxg3 37. Rxh7+ Kc8 38. Kf2 Rg6 39. Rh6 Rxh6 40. Bxh6 c6 {[%emt 1:18:00]} 41. Bd2 {[%emt 1:57:30]} Kd7 {[%emt 0:36:30]} 42. Ke3 {[%emt 0:17:41]} Bc5+ {[%emt 0:01:30]} 43. Kd3 {[%emt 0:00:14]} Kd6 {[%emt 0:00:30]} 44. dxc6 {[%emt 0:04:48]} Kxc6 {[%emt 0:00:30]} 45. Kc4 {[%emt 0:00:00]} Bd6 {[%emt 0:03:30]} 46. Be3 {[%emt 0:00:00]} Be7 {[%emt 0:01:30]} 47. Bh6 {[%emt 0:00:00]} Bc5 {[%emt 0:03:16]} 48. Bg5 {[%emt 0:00:00]} Bd4 {[%emt 0:00:20]} 49. b3 {[%emt 0:00:05]} Bc5 {[%emt 0:01:53]} 50. Kd3 {[%emt 0:01:01]} Bd6 {[%emt 0:01:04]} 51. Bd2 {[%emt 0:00:50]} Bc7 {[%emt 0:03:35]} 52. Bc3 {[%emt 0:00:38]} b5 {[%emt 0:03:43]} 53. Be1 {[%emt 0:00:04]} Kc5 {[%emt 0:00:14]} 54. Kc3 {[%emt 0:00:09]} Kc6 {[%emt 0:01:09]} 55. Bh4 {[%emt 0:00:14]} Bb6 {[%emt 0:04:46]} 56. Kd3 {[%emt 0:00:15]} Bc7 {[%emt 0:00:43]} 57. Be1 {[%emt 0:00:16]} Bb6 {[%emt 0:00:30]} 58. Bc3 {[%emt 0:00:43]} Bc7 {[%emt 0:00:02]} 59. Bb2 {[%emt 0:00:05]} Bb8 {[%emt 0:01:05]} 60. Bc3 {[%emt 0:00:13]} 1/2-1/2